[Event "10th Cesme Open-A 2024"]
[Site "Cesme"]
[Date "2024.06.27"]
[Round "6"]
[White "Samani, Yamac"]
[Black "Barrish, Daniel"]
[Result "1/2-1/2"]
[ECO "B19"]
[WhiteElo "2360"]
[BlackElo "2256"]
[Annotator "RC"]
[PlyCount "64"]
[EventDate "2024.06.23"]
[EventType "swiss"]
[EventCountry "TUR"]
[SourceTitle "playchess.com"]
[Source "ChessBase"]
[SourceQuality "1"]
[TimeControl "5400+30"]

1. e4 {[%emt 0:01:00]} c6 {[%emt 0:03:00]} 2. d4 {[%emt 0:00:30]} d5 {[%emt 0:00:30]} 3. Nc3 {[%emt 0:00:00]} dxe4 {[%emt 0:00:30]} 4. Nxe4 {[%emt 0:00:00]} Bf5 {[%emt 0:00:00]} 5. Ng3 {[%emt 0:00:30]} Bg6 {[%emt 0:00:00]} 6. Nf3 {[%emt 0:00:00]} Nd7 {[%emt 0:00:30]} 7. h4 {[%emt 0:00:00]} h6 {[%emt 0:00:30]} 8. h5 {[%emt 0:00:30]} Bh7 {[%emt 0:00:30]} 9. Bd3 {[%emt 0:00:30]} Bxd3 {[%emt 0:00:00]} 10. Qxd3 {[%emt 0:00:00]} e6 {[%emt 0:01:00]} 11. Bd2 {[%emt 0:00:00]} Ngf6 {[%emt 0:00:30]} 12. O-O-O {[%emt 0:00:30]} Be7 {[%emt 0:00:30]} 13. Ne4 {[%emt 0:01:30]} Nxe4 {[%emt 0:02:30]} 14. Qxe4 {[%emt 0:00:30]} Nf6 {[%emt 0:00:00]} 15. Qe2 {[%emt 0:01:30]} Qd5 {[%emt 0:00:00]} 16. c4 {[%emt 0:00:30]} Qe4 {[%emt 0:00:30]} 17. Qxe4 {[%emt 0:00:30]} Nxe4 {[%emt 0:00:30]} 18. Be3 {[%emt 0:02:30]} f5 {[%emt 0:00:30]} 19. g3 {[%emt 0:03:30]} O-O {[%emt 0:06:30]} 20. Ne5 {[%emt 0:04:30]} Rad8 {[%emt 0:06:30]} 21. Ng6 {[%emt 0:05:30]} Rfe8 {[%emt 0:01:30]} 22. Nxe7+ {[%emt 0:14:30]} Rxe7 {[%emt 0:00:30]} 23. Kb1 {[%emt 0:10:30]} Red7 {[%emt 0:10:30]} 24. Rc1 {[%emt 0:01:30]} b6 {[%emt 0:10:30]} 25. Rc2 {[%emt 0:00:30]} Ng5 {[%emt 0:01:30]} 26. Rc3 {[%emt 0:15:30]} Nf3 {[%emt 0:06:30]} 27. Bxh6 {[%emt 0:03:30]} gxh6 {[%emt 0:00:30]} 28. Rxf3 {[%emt 0:01:30]} Rxd4 {[%emt 0:00:30]} 29. Rc1 {[%emt 0:05:30]} Re4 {[%emt 0:05:30]} 30. Ra3 {[%emt 0:03:30]} Re2 {[%emt 0:06:30]} 31. Rxa7 {[%emt 0:06:44]} Rdd2 {[%emt 0:02:30]} 32. f4 {[%emt 0:01:50]} Rxb2+ {[%emt 0:01:30]} 1/2-1/2

[Event "10th Cesme Open-A 2024"]
[Site "Cesme"]
[Date "2024.06.27"]
[Round "6"]
[White "Schekachikhin, Maksim"]
[Black "Tarlabasi, Emirhan"]
[Result "1-0"]
[ECO "D30"]
[WhiteElo "2343"]
[BlackElo "2303"]
[Annotator "RC"]
[PlyCount "139"]
[EventDate "2024.06.23"]
[EventType "swiss"]
[EventCountry "TUR"]
[SourceTitle "playchess.com"]
[Source "ChessBase"]
[SourceQuality "1"]
[TimeControl "5400+30"]

1. d4 {[%emt 0:01:00]} d5 {[%emt 0:04:00]} 2. c4 {[%emt 0:00:00]} e6 {[%emt 0:01:30]} 3. Nf3 {[%emt 0:00:00]} c5 {[%emt 0:02:30]} 4. cxd5 {[%emt 0:01:30]} exd5 {[%emt 0:00:30]} 5. g3 {[%emt 0:02:30]} Nc6 {[%emt 0:05:30]} 6. Bg2 {[%emt 0:01:30]} Nf6 {[%emt 0:00:30]} 7. O-O {[%emt 0:00:30]} Be7 {[%emt 0:09:30]} 8. dxc5 {[%emt 0:01:30]} Bxc5 {[%emt 0:01:30]} 9. a3 {[%emt 0:01:30]} a5 {[%emt 0:02:30]} 10. Bg5 {[%emt 0:04:30]} O-O {[%emt 0:02:30]} 11. Qc2 {[%emt 0:02:30]} Ba7 {[%emt 0:05:30]} 12. Nc3 {[%emt 0:05:30]} Be6 {[%emt 0:02:30]} 13. Rad1 {[%emt 0:11:30]} Rc8 {[%emt 0:12:30]} 14. Qb1 {[%emt 0:03:30]} Re8 {[%emt 0:10:30]} 15. e3 {[%emt 0:06:30]} h6 {[%emt 0:10:30]} 16. Bxf6 {[%emt 0:01:30]} Qxf6 {[%emt 0:02:30]} 17. Nxd5 {[%emt 0:00:30]} Bxd5 {[%emt 0:01:30]} 18. Rxd5 {[%emt 0:00:30]} Rcd8 {[%emt 0:06:03]} 19. Rfd1 {[%emt 0:01:30]} Rxd5 {[%emt 0:02:02]} 20. Rxd5 {[%emt 0:00:30]} Rd8 {[%emt 0:00:17]} 21. Nd2 {[%emt 0:08:30]} Rxd5 {[%emt 0:05:41]} 22. Bxd5 {[%emt 0:00:30]} Ne5 {[%emt 0:01:06]} 23. Bxb7 {[%emt 0:06:30]} Ng4 {[%emt 0:01:45]} 24. Nf3 {[%emt 0:07:30]} Ne5 {[%emt 0:00:00]} 25. Nxe5 {[%emt 0:02:30]} Qxe5 {[%emt 0:01:43]} 26. b4 {[%emt 0:00:30]} axb4 {[%emt 0:07:27]} 27. axb4 {[%emt 0:00:30]} g5 {[%emt 0:01:24]} 28. Qd3 {[%emt 0:01:30]} Bb6 {[%emt 0:00:27]} 29. Kg2 {[%emt 0:01:30]} Kg7 {[%emt 0:00:01]} 30. Qd7 {[%emt 0:01:30]} Qc7 {[%emt 0:00:58]} 31. Qd5 {[%emt 0:04:30]} Qc3 {[%emt 0:00:21]} 32. b5 {[%emt 0:00:30]} Qb2 {[%emt 0:00:26]} 33. Qd3 {[%emt 0:00:30]} Qe5 {[%emt 0:00:30]} 34. Bd5 {[%emt 0:00:30]} Qf6 {[%emt 0:00:47]} 35. Qe4 {[%emt 0:00:30]} h5 {[%emt 0:00:27]} 36. h3 {[%emt 0:02:30]} h4 {[%emt 0:00:31]} 37. g4 {[%emt 0:04:38]} Bc7 {[%emt 0:00:40]} 38. Bc4 {[%emt 0:00:17]} Qd6 {[%emt 0:00:26]} 39. Qf3 {[%emt 0:00:18]} Qg6 {[%emt 0:00:26]} 40. Qd5 {[%emt 0:00:42]} Qf6 {[%emt 0:00:25]} 41. Qd7 {[%emt 0:02:12]} Bb6 {[%emt 0:00:25]} 42. Bd5 {[%emt 0:04:10]} Ba5 {[%emt 0:00:28]} 43. Qb7 {[%emt 0:02:56]} Be1 {[%emt 0:00:41]} 44. Qxf7+ {[%emt 0:01:36]} Qxf7 {[%emt 0:00:03]} 45. Bxf7 {[%emt 0:00:11]} Kxf7 {[%emt 0:00:30]} 46. b6 {[%emt 0:00:05]} Ba5 {[%emt 0:00:37]} 47. b7 {[%emt 0:00:30]} Bc7 {[%emt 0:00:30]} 48. Kf3 {[%emt 0:00:00]} Bb8 {[%emt 0:00:44]} 49. Ke4 {[%emt 0:00:00]} Kf6 {[%emt 0:00:18]} 50. f4 {[%emt 0:00:51]} Kg6 {[%emt 0:00:38]} 51. Kd5 {[%emt 0:02:46]} gxf4 {[%emt 0:00:22]} 52. exf4 {[%emt 0:00:30]} Bxf4 {[%emt 0:00:30]} 53. Ke6 {[%emt 0:00:00]} Bg3 {[%emt 0:01:15]} 54. Kd7 {[%emt 0:00:00]} Kg5 {[%emt 0:00:32]} 55. Kc8 {[%emt 0:00:23]} Be5 {[%emt 0:00:30]} 56. b8=Q {[%emt 0:00:30]} Bxb8 {[%emt 0:00:30]} 57. Kxb8 {[%emt 0:00:00]} Kf4 {[%emt 0:00:02]} 58. Kc7 {[%emt 0:00:00]} Ke5 {[%emt 0:00:28]} 59. Kd7 {[%emt 0:01:06]} Kd5 {[%emt 0:00:30]} 60. Ke7 {[%emt 0:00:00]} Ke5 {[%emt 0:00:19]} 61. Kf7 {[%emt 0:00:23]} Kf4 {[%emt 0:00:00]} 62. Kf6 {[%emt 0:00:36]} Kg3 {[%emt 0:00:00]} 63. g5 {[%emt 0:00:07]} Kxh3 {[%emt 0:00:11]} 64. g6 {[%emt 0:00:04]} Kg2 {[%emt 0:01:19]} 65. g7 {[%emt 0:00:30]} h3 {[%emt 0:00:30]} 66. g8=Q+ {[%emt 0:00:30]} Kf2 {[%emt 0:00:00]} 67. Qa2+ {[%emt 0:00:00]} Kg1 {[%emt 0:00:00]} 68. Qb1+ {[%emt 0:00:15]} Kg2 {[%emt 0:00:00]} 69. Qe4+ {[%emt 0:00:00]} Kg1 {[%emt 0:00:22]} 70. Qg4+ {[%emt 0:00:00]} 1-0

[Event "10th Cesme Open-A 2024"]
[Site "Cesme"]
[Date "2024.06.27"]
[Round "6"]
[White "Kamer, Kayra"]
[Black "Isik, Alparslan"]
[Result "0-1"]
[ECO "B56"]
[WhiteElo "2316"]
[BlackElo "2469"]
[Annotator "RC"]
[PlyCount "98"]
[EventDate "2024.06.23"]
[EventType "swiss"]
[EventCountry "TUR"]
[SourceTitle "playchess.com"]
[Source "ChessBase"]
[SourceQuality "1"]
[TimeControl "5400+30"]

1. e4 {[%emt 0:07:00]} c5 {[%emt 0:01:00]} 2. Nf3 {[%emt 0:00:30]} d6 {[%emt 0:00:30]} 3. d4 {[%emt 0:00:30]} cxd4 {[%emt 0:00:30]} 4. Nxd4 {[%emt 0:00:30]} Nf6 {[%emt 0:00:30]} 5. Nc3 {[%emt 0:00:30]} Nc6 {[%emt 0:00:00]} 6. h3 {[%emt 0:04:30]} e5 {[%emt 0:00:00]} 7. Nde2 {[%emt 0:00:30]} Be6 {[%emt 0:00:00]} 8. g4 {[%emt 0:00:30]} d5 {[%emt 0:00:00]} 9. exd5 {[%emt 0:00:30]} Nxd5 {[%emt 0:00:30]} 10. Bg2 {[%emt 0:00:30]} Nxc3 {[%emt 0:17:30]} 11. Nxc3 {[%emt 0:00:30]} Qxd1+ {[%emt 0:11:30]} 12. Nxd1 {[%emt 0:00:30]} O-O-O {[%emt 0:00:00]} 13. Ne3 {[%emt 0:02:30]} h5 {[%emt 0:03:00]} 14. Bd2 {[%emt 0:08:30]} Bc5 {[%emt 0:03:30]} 15. g5 {[%emt 0:01:30]} f5 {[%emt 0:06:30]} 16. gxf6 {[%emt 0:06:30]} gxf6 {[%emt 0:00:30]} 17. a3 {[%emt 0:00:30]} f5 {[%emt 0:03:30]} 18. b4 {[%emt 0:00:30]} Bb6 {[%emt 0:00:30]} 19. c4 {[%emt 0:00:30]} Nd4 {[%emt 0:09:30]} 20. Ra2 {[%emt 0:25:30]} e4 {[%emt 0:04:30]} 21. Bc3 {[%emt 0:08:30]} Rhg8 {[%emt 0:05:30]} 22. Rd2 {[%emt 0:00:30]} f4 {[%emt 0:09:30]} 23. Nd5 {[%emt 0:00:30]} Bxd5 {[%emt 0:01:30]} 24. cxd5 {[%emt 0:00:00]} Rxg2 {[%emt 0:08:38]} 25. Bxd4 {[%emt 0:00:00]} Rxd5 {[%emt 0:00:30]} 26. Rc2+ {[%emt 0:00:00]} Kd7 {[%emt 0:00:06]} 27. Bxb6 {[%emt 0:00:00]} axb6 {[%emt 0:00:30]} 28. Rc4 {[%emt 0:00:30]} Re5 {[%emt 0:02:48]} 29. Ke2 {[%emt 0:00:00]} Ke6 {[%emt 0:01:47]} 30. Rd1 {[%emt 0:08:00]} e3 {[%emt 0:01:12]} 31. Rf1 {[%emt 0:00:30]} exf2+ {[%emt 0:02:48]} 32. Kf3 {[%emt 0:00:30]} Rg3+ {[%emt 0:00:30]} 33. Kxf2 {[%emt 0:00:00]} Kf5 {[%emt 0:00:54]} 34. Rd1 {[%emt 0:01:00]} Rxh3 {[%emt 0:00:29]} 35. Rd7 {[%emt 0:02:30]} Kg4 {[%emt 0:01:06]} 36. Rg7+ {[%emt 0:00:30]} Rg5 {[%emt 0:00:09]} 37. Rxb7 {[%emt 0:00:30]} Rh2+ {[%emt 0:03:20]} 38. Ke1 {[%emt 0:02:30]} Kg3 {[%emt 0:01:10]} 39. Rf7 {[%emt 0:00:30]} f3 {[%emt 0:00:00]} 40. Rc3 {[%emt 0:03:21]} Rf2 {[%emt 0:01:09]} 41. Re3 {[%emt 0:02:06]} Kg2 {[%emt 0:00:11]} 42. a4 {[%emt 0:09:04]} Rf1+ {[%emt 0:00:11]} 43. Kd2 {[%emt 0:00:04]} f2 {[%emt 0:00:03]} 44. Re2 {[%emt 0:02:33]} Kg1 {[%emt 0:00:17]} 45. a5 {[%emt 0:04:00]} bxa5 {[%emt 0:00:30]} 46. bxa5 {[%emt 0:00:00]} Rg2 {[%emt 0:00:00]} 47. Ke3 {[%emt 0:03:21]} Ra1 {[%emt 0:00:00]} 48. Rexf2 {[%emt 0:00:36]} Rxf2 {[%emt 0:00:21]} 49. Rxf2 {[%emt 0:00:30]} Ra3+ {[%emt 0:00:00]} 0-1

[Event "10th Cesme Open-A 2024"]
[Site "Cesme"]
[Date "2024.06.27"]
[Round "6"]
[White "Bicer, Atakan Mert"]
[Black "Domalchuk-Jonasson, Aleksandr"]
[Result "1/2-1/2"]
[ECO "C07"]
[WhiteElo "2313"]
[BlackElo "2380"]
[Annotator "RC"]
[PlyCount "80"]
[EventDate "2024.06.23"]
[EventType "swiss"]
[EventCountry "TUR"]
[SourceTitle "playchess.com"]
[Source "ChessBase"]
[SourceQuality "1"]
[TimeControl "5400+30"]

1. e4 {[%emt 0:02:00]} e6 {[%emt 0:01:00]} 2. d4 {[%emt 0:00:30]} d5 {[%emt 0:00:00]} 3. Nd2 {[%emt 0:00:00]} c5 {[%emt 0:00:00]} 4. Ngf3 {[%emt 0:00:00]} cxd4 {[%emt 0:00:30]} 5. Nxd4 {[%emt 0:00:30]} Nc6 {[%emt 0:00:30]} 6. Bb5 {[%emt 0:00:30]} Bd7 {[%emt 0:00:30]} 7. Nxc6 {[%emt 0:00:30]} bxc6 {[%emt 0:00:30]} 8. Bd3 {[%emt 0:00:30]} Qc7 {[%emt 0:00:00]} 9. Qe2 {[%emt 0:01:30]} Ne7 {[%emt 0:00:00]} 10. Nf3 {[%emt 0:00:30]} Ng6 {[%emt 0:00:00]} 11. e5 {[%emt 0:05:30]} f6 {[%emt 0:00:00]} 12. Bxg6+ {[%emt 0:22:30]} hxg6 {[%emt 0:00:00]} 13. h3 {[%emt 0:00:00]} g5 {[%emt 0:04:00]} 14. O-O {[%emt 0:01:00]} c5 {[%emt 0:01:30]} 15. Bd2 {[%emt 0:05:30]} Rb8 {[%emt 0:03:30]} 16. c4 {[%emt 0:02:30]} d4 {[%emt 0:03:30]} 17. b3 {[%emt 0:07:30]} Be7 {[%emt 0:04:30]} 18. Rae1 {[%emt 0:00:30]} Qb7 {[%emt 0:08:30]} 19. b4 {[%emt 0:18:30]} Kf7 {[%emt 0:09:30]} 20. exf6 {[%emt 0:07:30]} gxf6 {[%emt 0:00:30]} 21. bxc5 {[%emt 0:00:30]} Bxc5 {[%emt 0:12:30]} 22. Bxg5 {[%emt 0:00:30]} Rbg8 {[%emt 0:00:30]} 23. Rb1 {[%emt 0:00:00]} Qc7 {[%emt 0:08:30]} 24. Rfe1 {[%emt 0:01:00]} Rxg5 {[%emt 0:18:30]} 25. Nxg5+ {[%emt 0:00:30]} fxg5 {[%emt 0:00:30]} 26. Qf3+ {[%emt 0:01:30]} Qf4 {[%emt 0:02:30]} 27. Qb7 {[%emt 0:00:30]} Qd6 {[%emt 0:03:05]} 28. Rb3 {[%emt 0:00:30]} Ke7 {[%emt 0:00:53]} 29. Qe4 {[%emt 0:01:30]} Qf4 {[%emt 0:10:33]} 30. Qg6 {[%emt 0:01:37]} Qf6 {[%emt 0:00:16]} 31. Qe4 {[%emt 0:01:54]} Qf4 {[%emt 0:00:02]} 32. Qg6 {[%emt 0:00:10]} Qf6 {[%emt 0:00:30]} 33. Qe4 {[%emt 0:00:08]} Rf8 {[%emt 0:02:51]} 34. Rf3 {[%emt 0:01:36]} Qg7 {[%emt 0:00:36]} 35. Qd5 {[%emt 0:02:41]} Bb4 {[%emt 0:05:51]} 36. Rxe6+ {[%emt 0:07:01]} Bxe6 {[%emt 0:00:30]} 37. Qb7+ {[%emt 0:00:30]} Bd7 {[%emt 0:00:00]} 38. Qxb4+ {[%emt 0:00:00]} Ke8 {[%emt 0:00:00]} 39. Qb8+ {[%emt 0:01:14]} Ke7 {[%emt 0:00:24]} 40. Qb4+ {[%emt 0:00:30]} Ke8 {[%emt 0:00:30]} 1/2-1/2

[Event "10th Cesme Open-A 2024"]
[Site "Cesme"]
[Date "2024.06.27"]
[Round "6"]
[White "Taspinar, Yanki"]
[Black "Cilek, Bora"]
[Result "1/2-1/2"]
[ECO "C10"]
[WhiteElo "2309"]
[BlackElo "2242"]
[Annotator "RC"]
[PlyCount "32"]
[EventDate "2024.06.23"]
[EventType "swiss"]
[EventCountry "TUR"]
[SourceTitle "playchess.com"]
[Source "ChessBase"]
[SourceQuality "1"]
[TimeControl "5400+30"]

1. e4 {[%emt 0:10:00]} e6 {[%emt 0:01:00]} 2. d4 {[%emt 0:01:30]} d5 {[%emt 0:00:30]} 3. Nd2 {[%emt 0:00:30]} dxe4 {[%emt 0:00:00]} 4. Nxe4 {[%emt 0:00:30]} Bd7 {[%emt 0:00:00]} 5. Nf3 Bc6 6. Bd3 {[%emt 0:04:00]} Nd7 {[%emt 0:00:00]} 7. O-O {[%emt 0:02:30]} Ngf6 {[%emt 0:00:00]} 8. Qe2 {[%emt 0:03:30]} Nxe4 {[%emt 0:01:00]} 9. Bxe4 {[%emt 0:00:00]} Bxe4 {[%emt 0:00:00]} 10. Qxe4 {[%emt 0:00:00]} c6 {[%emt 0:00:00]} 11. Bf4 {[%emt 0:01:30]} Nf6 {[%emt 0:00:30]} 12. Qd3 {[%emt 0:00:30]} Be7 {[%emt 0:00:30]} 13. Rfe1 {[%emt 0:02:30]} O-O {[%emt 0:00:30]} 14. Be5 {[%emt 0:00:30]} Nd7 {[%emt 0:12:30]} 15. Bg3 {[%emt 0:01:30]} Nf6 {[%emt 0:02:30]} 16. Be5 {[%emt 0:00:30]} Nd7 {[%emt 0:00:00]} 1/2-1/2

[Event "10th Cesme Open-A 2024"]
[Site "Cesme"]
[Date "2024.06.27"]
[Round "6"]
[White "Koksal, Ege"]
[Black "Bernadskiy, Vitaliy"]
[Result "1/2-1/2"]
[ECO "E67"]
[WhiteElo "2297"]
[BlackElo "2563"]
[Annotator "TA"]
[PlyCount "74"]
[EventDate "2024.06.23"]
[EventType "swiss"]
[EventCountry "TUR"]
[SourceTitle "playchess.com"]
[Source "ChessBase"]
[SourceQuality "1"]
[TimeControl "5400+30"]

{[%evp 24,74,19,18,19,5,31,25,50,0,11,0,0,0,0,0,0,0,0,0,0,0,0,0,0,0,0,0,0,0,0,0,0,0,0,0,0,0,0,-10,-9,-10,-10,-12,0,0,0,0,0,-24,27,-147,247]} 1. d4 {[%emt 0:07:00]} d6 {[%emt 0:01:00]} 2. Nf3 {[%emt 0:00:00]} Nf6 {[%emt 0:00:30]} 3. g3 {[%emt 0:01:00]} g6 {[%emt 0:00:30]} 4. Bg2 {[%emt 0:00:30]} Bg7 {[%emt 0:00:30]} 5. O-O {[%emt 0:00:30]} O-O {[%emt 0:00:30]} 6. c4 {[%emt 0:00:00]} Nbd7 {[%emt 0:00:30]} 7. Nc3 {[%emt 0:00:00]} e5 {[%emt 0:00:00]} 8. Qc2 {[%emt 0:01:30]} exd4 {[%emt 0:01:00]} 9. Nxd4 {[%emt 0:00:30]} Nb6 {[%emt 0:00:30]} 10. Rd1 {[%emt 0:00:30]} Nxc4 {[%emt 0:00:30]} 11. Ncb5 {[%emt 0:07:30]} a6 {[%emt 0:05:30]} 12. Qxc4 {[%emt 0:01:30]} axb5 {[%emt 0:00:30]} 13. Nxb5 {[%emt 0:00:30]} Ne8 {[%emt 0:01:30]} 14. Qb4 {[%emt 0:04:30]} Qe7 {[%emt 0:21:30]} 15. Be3 {[%emt 0:01:30]} Bd7 {[%emt 0:05:30] White has an edge.} 16. a4 {[%emt 0:03:30]} (16. Bxb7 Rb8 17. Ba6 Bxb5 (17... c6 18. Ba7 $17) 18. Bxb5 c6 $19) 16... Bc6 {[%emt 0:02:30]} 17. Rac1 {[%emt 0:02:30]} Bxg2 {[%emt 0:06:30]} 18. Kxg2 {[%emt 0:00:30]} c5 {[%emt 0:00:00]} 19. Qb3 {[%emt 0:12:30]} Qe4+ {[%emt 0:00:00]} 20. Kg1 {[%emt 0:00:00]} Rxa4 {[%emt 0:05:30][%cal Ba8a4,Ba4b4,Bb4b3][%mdl 32] [#] ...Rb4 is the strong threat.} 21. Nxd6 {[%emt 0:00:00]} Nxd6 {[%emt 0:01:30]} 22. Rxd6 {[%emt 0:00:30]} (22. Bxc5 {is interesting.} Nf5 23. Bxf8 Bxf8 24. Rc7) 22... Rb4 {[%emt 0:00:30]} 23. Qc2 {[%emt 0:01:30]} Qxc2 {[%emt 0:00:30]} 24. Rxc2 {[%emt 0:00:00]} b6 {[%emt 0:01:30]} 25. Bd2 {[%emt 0:00:00]} Rb3 {[%emt 0:00:30]} 26. Bc3 {[%emt 0:00:30]} Rc8 {[%emt 0:02:30]} 27. Kg2 {[%emt 0:01:30]} b5 {[%emt 0:00:30]} 28. e3 {[%emt 0:00:30]} c4 {[%emt 0:03:30]} 29. Kf3 {[%emt 0:01:30]} h5 {[%emt 0:02:30]} 30. h4 {[%emt 0:01:30]} Ra8 {[%emt 0:00:30]} 31. g4 {[%emt 0:10:30]} hxg4+ {[%emt 0:02:30]} 32. Kxg4 {[%emt 0:00:00]} Ra2 {[%emt 0:01:30] [#] White must now prevent ...Bxc3.} 33. Rdd2 {[%emt 0:01:00]} Bxc3 {[%emt 0:03:30]} 34. bxc3 {[%emt 0:00:30]} Rxc2 {[%emt 0:00:30]} 35. Rxc2 {[%emt 0:00:30]} Kg7 {[%emt 0:00:00]} 36. h5 {[%emt 0:10:30]} Kf6 {[%emt 0:00:00]} (36... gxh5+ $142 37. Kxh5 Kf6) 37. f3 $2 {[%emt 0:00:30]} ({White should play} 37. h6 $11 Rb1 38. f4) 37... Ke5 $2 {[%emt 0:07:30][%mdl 8192] Weighted Error Value: White=0.19 (very precise) /Black=0.07 (flawless) .  Loses game:     	---       	Black=1      Mistake:       	White=1     	Black=1      Inaccurate:     	White=1     	Black=1      OK:         	White=12    	Black=6      Best:        	---       	Black=2} (37... gxh5+ $17 {stays on course.} 38. Kxh5 Ke5) 1/2-1/2

[Event "10th Cesme Open-A 2024"]
[Site "Cesme"]
[Date "2024.06.27"]
[Round "6"]
[White "Eke, Salih"]
[Black "Portakalci, Yusuf"]
[Result "1-0"]
[ECO "D37"]
[WhiteElo "2251"]
[BlackElo "2034"]
[Annotator "RC"]
[PlyCount "63"]
[EventDate "2024.06.23"]
[EventType "swiss"]
[EventCountry "TUR"]
[SourceTitle "playchess.com"]
[Source "ChessBase"]
[SourceQuality "1"]
[TimeControl "5400+30"]

1. d4 {[%emt 0:01:00]} d5 {[%emt 0:02:00]} 2. c4 {[%emt 0:00:30]} e6 {[%emt 0:00:30]} 3. Nf3 {[%emt 0:00:30]} Nf6 {[%emt 0:00:30]} 4. Nc3 {[%emt 0:00:30]} Be7 {[%emt 0:00:00]} 5. Bf4 {[%emt 0:00:00]} O-O {[%emt 0:00:00]} 6. e3 {[%emt 0:00:00]} a6 {[%emt 0:06:30]} 7. cxd5 {[%emt 0:03:30]} exd5 {[%emt 0:01:30]} 8. Bd3 {[%emt 0:00:00]} Nbd7 {[%emt 0:02:30]} 9. O-O {[%emt 0:01:00]} c6 {[%emt 0:01:30]} 10. h3 {[%emt 0:05:30]} Re8 {[%emt 0:00:30]} 11. Bh2 {[%emt 0:01:30]} b5 {[%emt 0:05:30]} 12. Ne5 {[%emt 0:05:30]} Bb7 {[%emt 0:13:30]} 13. Rc1 {[%emt 0:15:30]} Bd6 {[%emt 0:15:30]} 14. f4 {[%emt 0:01:30]} c5 {[%emt 0:01:30]} 15. Kh1 {[%emt 0:00:30]} cxd4 {[%emt 0:04:30]} 16. exd4 {[%emt 0:00:30]} Ne4 {[%emt 0:04:30]} 17. Nxe4 {[%emt 0:18:30]} dxe4 {[%emt 0:01:30]} 18. Bc2 {[%emt 0:03:30]} Nf6 {[%emt 0:09:30]} 19. Bb3 {[%emt 0:00:00]} Re7 {[%emt 0:13:46]} 20. f5 {[%emt 0:01:00]} Qb6 {[%emt 0:02:33]} 21. Qe2 {[%emt 0:11:30]} Rd8 {[%emt 0:01:39]} 22. Bg1 {[%emt 0:00:30]} Bb8 {[%emt 0:05:19]} 23. Be3 {[%emt 0:09:46]} Ba7 {[%emt 0:02:12]} 24. Ng4 {[%emt 0:00:26]} Bb8 {[%emt 0:01:23]} 25. d5 {[%emt 0:03:13]} Qd6 {[%emt 0:00:11]} 26. Bf4 {[%emt 0:01:07]} Qd7 {[%emt 0:00:49]} 27. Nxf6+ {[%emt 0:01:27]} gxf6 {[%emt 0:00:30]} 28. Qg4+ {[%emt 0:00:00]} Kh8 {[%emt 0:00:21]} 29. Qh4 {[%emt 0:00:00]} Be5 {[%emt 0:00:54]} 30. Bxe5 {[%emt 0:02:31]} fxe5 {[%emt 0:00:30]} 31. Qf6+ {[%emt 0:00:30]} Kg8 {[%emt 0:00:00]} 32. Rc3 {[%emt 0:00:00]} 1-0

[Event "10th Cesme Open-A 2024"]
[Site "Cesme"]
[Date "2024.06.27"]
[Round "6"]
[White "Ince, Taylan Ruzgar"]
[Black "Uysal, Ugur"]
[Result "1-0"]
[ECO "E62"]
[WhiteElo "2243"]
[BlackElo "2058"]
[Annotator "RC"]
[PlyCount "113"]
[EventDate "2024.06.23"]
[EventType "swiss"]
[EventCountry "TUR"]
[SourceTitle "playchess.com"]
[Source "ChessBase"]
[SourceQuality "1"]
[TimeControl "5400+30"]

1. Nf3 {[%emt 0:02:00]} Nf6 {[%emt 0:01:00]} 2. c4 {[%emt 0:01:30]} g6 {[%emt 0:00:00]} 3. g3 {[%emt 0:01:30]} Bg7 {[%emt 0:00:00]} 4. d4 {[%emt 0:00:30]} O-O {[%emt 0:00:30]} 5. Bg2 {[%emt 0:00:30]} d6 {[%emt 0:00:30]} 6. O-O {[%emt 0:00:00]} c6 {[%emt 0:00:00]} 7. Nc3 {[%emt 0:00:00]} Qb6 {[%emt 0:00:00]} 8. Qc2 {[%emt 0:06:30]} Bf5 {[%emt 0:06:30]} 9. Qa4 {[%emt 0:02:30]} Ne4 {[%emt 0:08:30]} 10. Rd1 {[%emt 0:03:30]} Nxc3 {[%emt 0:02:30]} 11. bxc3 {[%emt 0:00:30]} Be4 {[%emt 0:00:30]} 12. c5 {[%emt 0:12:30]} Qc7 {[%emt 0:06:30]} 13. cxd6 {[%emt 0:02:30]} exd6 {[%emt 0:00:30]} 14. Bf4 {[%emt 0:00:00]} Re8 {[%emt 0:07:30]} 15. c4 {[%emt 0:04:00]} Qe7 {[%emt 0:05:30]} 16. Rac1 {[%emt 0:04:30]} Na6 {[%emt 0:04:30]} 17. Qa3 {[%emt 0:08:30]} Rad8 {[%emt 0:03:30]} 18. Qe3 {[%emt 0:09:30]} c5 {[%emt 0:13:30]} 19. dxc5 {[%emt 0:08:30]} Nxc5 {[%emt 0:00:30]} 20. Qa3 {[%emt 0:08:30]} a6 {[%emt 0:03:30]} 21. Be3 {[%emt 0:01:30]} Bc6 {[%emt 0:02:30]} 22. Ne1 {[%emt 0:02:30]} Qc7 {[%emt 0:08:30]} 23. Bd5 {[%emt 0:04:45]} Na4 {[%emt 0:02:30]} 24. Bxc6 {[%emt 0:02:25]} Qxc6 {[%emt 0:00:30]} 25. Nd3 {[%emt 0:00:00]} Re4 {[%emt 0:03:30]} 26. Nb4 {[%emt 0:01:12]} Qe8 {[%emt 0:01:20]} 27. Rc2 {[%emt 0:00:44]} Kh8 {[%emt 0:09:18]} 28. Nd5 {[%emt 0:01:34]} Qc6 {[%emt 0:00:48]} 29. Qd3 {[%emt 0:01:56]} Rde8 {[%emt 0:01:41]} 30. Rb1 {[%emt 0:01:26]} h5 {[%emt 0:01:03]} 31. Qb3 {[%emt 0:01:07]} Nc5 {[%emt 0:02:16]} 32. Bxc5 {[%emt 0:05:20]} dxc5 {[%emt 0:01:18]} 33. Qf3 {[%emt 0:01:12]} b5 {[%emt 0:02:14]} 34. Qxf7 {[%emt 0:01:25]} Rf8 {[%emt 0:00:30]} 35. Qc7 {[%emt 0:00:44]} Qxc7 {[%emt 0:03:48]} 36. Nxc7 {[%emt 0:00:04]} bxc4 {[%emt 0:00:40]} 37. Nxa6 {[%emt 0:00:21]} Rfe8 {[%emt 0:00:33]} 38. e3 {[%emt 0:00:30]} Rc8 {[%emt 0:00:10]} 39. Rb5 {[%emt 0:01:17]} c3 {[%emt 0:00:22]} 40. Rxc5 {[%emt 0:00:23]} Rxc5 {[%emt 0:00:40]} 41. Nxc5 {[%emt 0:00:30]} Rb4 {[%emt 0:00:30]} 42. Nb3 {[%emt 0:00:00]} h4 {[%emt 0:00:03]} 43. Kf1 {[%emt 0:00:11]} Kh7 {[%emt 0:00:00]} 44. Ke2 {[%emt 0:00:10]} h3 {[%emt 0:00:15]} 45. Kd3 {[%emt 0:00:30]} g5 {[%emt 0:00:21]} 46. f3 {[%emt 0:00:36]} Be5 {[%emt 0:01:29]} 47. f4 {[%emt 0:01:08]} gxf4 {[%emt 0:00:30]} 48. gxf4 {[%emt 0:00:00]} Bf6 {[%emt 0:00:32]} 49. Nd4 {[%emt 0:00:00]} Rb1 {[%emt 0:01:18]} 50. Kxc3 {[%emt 0:00:00]} Rh1 {[%emt 0:00:35]} 51. Kd3 {[%emt 0:00:27]} Bh4 {[%emt 0:00:00]} 52. Nf3 {[%emt 0:00:19]} Bf6 {[%emt 0:00:11]} 53. Ke4 {[%emt 0:00:26]} Kg6 {[%emt 0:00:30]} 54. Rc6 {[%emt 0:00:30]} Ra1 {[%emt 0:00:00]} 55. Ne5+ {[%emt 0:00:02]} Kg7 {[%emt 0:00:11]} 56. Rc7+ {[%emt 0:00:00]} Kf8 {[%emt 0:00:26]} 57. Rf7+ {[%emt 0:00:00]} 1-0